bitfinex/quotes_SOLUSD_20241113
["timestamp","ask_amount","ask_price","bid_price","bid_amount"]
[1731488692410,22.64288597,205.52,205.48,312.0]
[1731488692620,22.64288597,205.52,205.44,12.1689]
[1731488692924,22.64288597,205.52,205.44,17.0365]
[1731488693226,22.64288597,205.52,205.44,12.1689]
[1731488693810,22.64288597,205.48,205.41,4.8681]
[1731488694330,22.64288597,205.46,205.4,12.1712]
[1731488695010,22.64288597,205.44,205.36,12.1736]
[1731488695338,28.91038597,205.46,205.39,22.64288597]
[1731488696225,28.91038597,205.46,205.36,324.1736]
[1731488696226,15.6556,205.47,205.41,22.64288597]
[1731488697133,20.5225,205.47,205.41,22.64288597]
[1731488697439,22.64288597,205.46,205.4,12.1713]
[1731488697728,22.64288597,205.46,205.39,22.64288597]
[1731488698236,20.5225,205.47,205.36,12.1735]
[1731488698237,22.64288597,205.44,205.36,12.1735]
[1731488698432,22.64288597,205.42,205.36,12.1735]
[1731488700023,27.51038597,205.45,205.37,22.64288597]
[1731488700218,15.6556,205.47,205.36,17.0429]
[1731488700219,43.16548597,205.47,205.39,22.64288597]
[1731488700524,38.29848597,205.47,205.39,22.64288597]
[1731488700915,43.16538597,205.47,205.39,334.64288597]
[1731488701616,22.64288597,205.43,205.36,12.1735]
[1731488701817,22.64288597,205.43,205.34,4.8697]
[1731488701818,22.64288597,205.43,205.35,22.64288597]
[1731488702045,4.8671,205.46,205.39,22.64288597]
[1731488702339,38.29848597,205.47,205.39,22.64288597]
[1731488702635,43.16548597,205.47,205.39,22.64288597]
[1731488702839,15.6556,205.47,205.41,22.64288597]
[1731488703017,16.3018,205.52,205.45,22.64288597]
[1731488703215,16.3018,205.52,205.49,22.64288597]
[1731488703519,6.2047,205.56,205.51,22.64288597]
[1731488703931,16.3018,205.57,205.53,22.64288597]
[1731488704324,16.3018,205.57,205.45,24.4362]
[1731488704325,4.8647,205.56,205.49,22.64288597]
[1731488704519,22.64288597,205.52,205.46,312.0]
[1731488704723,22.64288597,205.52,205.44,20.0]
[1731488705118,16.3018,205.57,205.5,22.64288597]
[1731488705436,21.1663,205.57,205.5,22.64288597]
[1731488706038,22.64288597,205.54,205.45,17.0357]
[1731488706248,22.64288597,205.54,205.46,22.64288597]
[1731488706622,21.1663,205.57,205.48,22.64288597]
[1731488706941,21.1663,205.57,205.51,22.64288597]
[1731488707323,21.1663,205.57,205.49,22.64288597]
[1731488707720,22.64288597,205.56,205.49,22.64288597]
[1731488707922,22.64288597,205.52,205.45,329.0355]
[1731488708127,22.64288597,205.5,205.43,0.12549]
[1731488708429,22.64288597,205.48,205.43,0.12549]
[1731488708944,22.64288597,205.44,205.43,0.12549]
[1731488709747,27.63597597,205.44,205.43,0.12549]
[1731488709933,51.41285997,205.44,205.41,0.12549]
[1731488710125,28.85497597,205.42,205.41,0.12549]
[1731488710322,75.27474594,205.42,205.41,0.12549]
[1731488710547,22.64288597,205.34,205.27,12.1786]
[1731488711044,22.64288597,205.32,205.24,334.64288597]
[1731488711249,22.64288597,205.32,205.22,12.1819]
[1731488711250,22.64288597,205.3,205.22,39.69738597]
[1731488712146,27.51338597,205.32,205.24,22.64288597]
[1731488712730,27.51338597,205.32,205.22,39.69738597]
[1731488712731,22.64288597,205.3,205.22,39.69738597]
[1731488713126,22.64288597,205.28,205.22,12.1819]
[1731488713940,22.64288597,205.28,205.22,17.0547]
[1731488714135,22.64288597,205.3,205.22,39.69758597]
[1731488714345,15.5155,205.34,205.26,22.64288597]
[1731488714346,22.64288597,205.32,205.26,22.64288597]
[1731488714649,6.0001,205.36,205.3,22.64288597]
[1731488714824,22.64288597,205.38,205.3,22.64288597]
[1731488715029,27.51198597,205.38,205.3,22.64288597]
[1731488715219,22.64288597,205.38,205.3,22.64288597]
[1731488715624,16.231,205.39,205.3,22.64288597]
[1731488715831,16.231,205.39,205.34,22.64288597]
[1731488716047,16.231,205.39,205.34,27.51278597]
[1731488716420,16.231,205.39,205.34,4.8699]
[1731488716824,6.0001,205.42,205.34,39.68768597]
[1731488717044,22.64288597,205.44,205.36,22.64288597]
[1731488717244,15.5013,205.45,205.36,22.64288597]
[1731488717437,20.3687,205.45,205.36,334.64288597]
[1731488717749,6.4009,205.47,205.4,22.64288597]
[1731488717944,6.4009,205.47,205.41,4.8683]
[1731488718452,11.2679,205.47,205.4,34.81408597]
[1731488718635,22.64288597,205.46,205.4,12.1712]
[1731488719035,11.2679,205.47,205.31,0.1]
[1731488719036,22.64288597,205.44,205.36,22.64288597]
[1731488719243,22.64288597,205.46,205.36,39.68588597]
[1731488719639,6.4009,205.47,205.4,22.64288597]
[1731488719841,38.16198597,205.5,205.42,22.64288597]
[1731488720155,38.16198597,205.5,205.42,27.51088597]
[1731488720361,15.5191,205.55,205.47,20.0]
[1731488720649,15.5191,205.55,205.5,22.64288597]
[1731488720826,29.06268597,205.58,205.5,22.64288597]
[1731488721032,22.64288597,205.56,205.48,22.64288597]
[1731488721951,4.8649,205.55,205.48,22.64288597]
[1731488722129,22.64288597,205.54,205.46,22.64288597]
[1731488722333,22.64288597,205.54,205.47,4.8668]
[1731488722536,27.50768597,205.56,205.46,34.81008597]
[1731488723041,22.64288597,205.56,205.48,22.64288597]
[1731488723353,6.4198,205.58,205.46,39.67718597]
[1731488723354,22.64288597,205.54,205.46,39.67718597]
[1731488723541,22.64288597,205.54,205.46,17.0343]
[1731488724239,4.8654,205.53,205.46,17.0343]
[1731488724439,4.8654,205.53,205.46,329.0343]
[1731488725339,4.865,205.55,205.48,22.64288597]
[1731488725746,22.64288597,205.56,205.48,22.64288597]
[1731488726754,27.50768597,205.56,205.48,22.64288597]
[1731488726953,12.4189817,205.6,205.48,46.28448597]
[1731488727154,6.0138,205.65,205.59,22.64288597]
[1731488727346,16.0477,205.66,205.59,22.64288597]
[1731488727955,20.9102,205.66,205.59,22.64288597]
[1731488729839,22.64288597,205.63,205.56,12.1616]
[1731488730140,22.76837597,205.65,205.57,22.64288597]
[1731488730952,4.8628,205.64,205.57,22.64288597]
[1731488731549,27.50558597,205.65,205.57,22.64288597]
[1731488732143,0.12549,205.64,205.55,22.64288597]
[1731488732638,22.64288597,205.58,205.5,22.64288597]
[1731488732971,22.76837597,205.6,205.5,27.50888597]
[1731488733141,22.64288597,205.62,205.54,22.64288597]
[1731488733455,16.0477,205.66,205.6,22.64288597]
[1731488734047,20.9102,205.66,205.58,22.64288597]
[1731488734252,43.55308597,205.66,205.58,22.64288597]
[1731488734562,0.12549,205.65,205.56,22.64288597]
[1731488734757,43.55308597,205.66,205.51,0.1]
[1731488734758,43.55308597,205.66,205.58,22.64288597]
[1731488735065,43.55308597,205.66,205.58,39.66758597]
[1731488736345,43.55308597,205.66,205.58,34.80358597]
[1731488737075,20.9102,205.66,205.58,39.66778597]
[1731488737243,16.0477,205.66,205.6,22.64288597]
[1731488737444,20.9101,205.66,205.6,22.64288597]
[1731488737742,20.9101,205.66,205.58,39.66778597]
[1731488738150,16.0477,205.66,205.6,22.64288597]
[1731488738356,0.12549,205.65,205.52,23.776884]
[1731488738556,22.64288597,205.64,205.56,22.64288597]
[1731488738761,0.12549,205.63,205.54,22.64288597]
[1731488738971,22.64288597,205.62,205.54,22.64288597]
[1731488739472,22.64288597,205.58,205.5,22.64288597]
[1731488740243,6.2296,205.59,205.49,17.0322]
[1731488740244,22.64288597,205.56,205.49,12.1659]
[1731488740471,39.06638597,205.56,205.48,27.50948597]
[1731488740650,39.06638597,205.56,205.48,22.64288597]
[1731488741473,39.06638597,205.56,205.48,27.50938597]
[1731488741658,39.06638597,205.56,205.46,22.64288597]
[1731488741864,39.06638597,205.56,205.46,4.8669]
[1731488741865,22.64288597,205.54,205.46,4.8669]
[1731488742064,22.64288597,205.52,205.44,12.1685]
[1731488742259,22.64288597,205.52,205.44,34.81138597]
[1731488742462,27.50868597,205.52,205.44,39.67898597]
[1731488742670,27.50868597,205.52,205.44,34.81138597]
[1731488743667,27.50868597,205.52,205.39,6.6258]
[1731488743668,22.64288597,205.5,205.41,4.8682]
[1731488744561,4.8673,205.45,205.39,12.1719]
[1731488744950,22.64288597,205.46,205.39,12.1719]
[1731488745146,22.64288597,205.46,205.39,17.0406]
[1731488745348,27.51008597,205.46,205.39,17.0406]
[1731488746458,27.50858597,205.52,205.44,22.64288597]
[1731488747771,27.50858597,205.52,205.44,27.51038597]
[1731488748472,6.0889,205.53,205.46,22.64288597]
[1731488748685,10.9544,205.53,205.46,22.64288597]
[1731488749671,39.06638597,205.56,205.49,23.776884]
[1731488749854,39.06638597,205.56,205.5,22.64288597]
[1731488749855,16.4235,205.56,205.5,22.64288597]
[1731488750655,43.93118597,205.56,205.49,20.0]
[1731488750856,43.93118597,205.56,205.46,17.0347]
[1731488750857,22.64288597,205.54,205.46,22.64288597]
[1731488751065,22.64288597,205.52,205.45,20.0]
[1731488751280,22.64288597,205.5,205.42,39.68088597]
[1731488751760,27.50908597,205.5,205.42,39.68088597]
[1731488752984,22.64288597,205.52,205.44,22.64288597]
[1731488753158,22.64288597,205.54,205.46,22.64288597]
[1731488753480,22.64288597,205.54,205.47,20.0]
[1731488753852,39.06638597,205.56,205.48,22.64288597]
[1731488754058,43.93108597,205.56,205.48,22.64288597]
[1731488754959,43.93108597,205.56,205.49,4.8664]
[1731488755175,43.93108597,205.56,205.47,37.0338]
[1731488757277,43.93108597,205.56,205.47,17.0338]
[1731488759573,39.06638597,205.56,205.48,22.64288597]
[1731488759774,6.5889,205.58,205.52,22.64288597]
[1731488760075,22.64288597,205.6,205.52,22.64288597]
[1731488760685,4.864,205.59,205.52,27.50848597]
[1731488761785,22.64288597,205.6,205.52,39.67268597]
[1731488761967,6.611,205.63,205.56,22.64288597]
[1731488762287,38.25218597,205.66,205.58,22.64288597]
[1731488762487,22.64288597,205.64,205.54,22.64288597]
[1731488762670,22.64288597,205.6,205.54,24.8649]
[1731488762861,22.64288597,205.6,205.54,37.0279]
[1731488763062,22.64288597,205.62,205.54,59.67078597]
[1731488763259,27.50578597,205.64,205.56,22.64288597]
[1731488763464,22.64288597,205.62,205.54,59.67078597]
[1731488763671,22.64288597,205.6,205.54,12.163]
[1731488763871,22.64288597,205.6,205.52,27.50838597]
[1731488765078,4.864,205.59,205.52,27.50838597]
[1731488765289,22.64288597,205.58,205.5,34.80808597]
[1731488765478,22.64288597,205.54,205.46,34.81058597]
[1731488765670,22.64288597,205.5,205.42,22.64288597]
[1731488766370,22.64288597,205.48,205.41,17.0385]
[1731488766883,27.50948597,205.48,205.41,17.0385]
[1731488767090,27.50948597,205.48,205.39,4.8686]
[1731488767382,22.64288597,205.46,205.38,22.64288597]
[1731488767582,22.64288597,205.46,205.38,27.51168597]
[1731488767793,22.64288597,205.46,205.38,39.68418597]
[1731488768270,22.64288597,205.46,205.38,34.81538597]
[1731488768988,22.64288597,205.4,205.33,12.1751]
[1731488769284,22.64288597,205.4,205.32,22.64288597]
[1731488769470,22.64288597,205.4,205.32,27.51318597]
[1731488769786,22.64288597,205.4,205.32,22.64288597]
[1731488769997,22.64288597,205.38,205.3,339.51368597]
[1731488770281,22.64288597,205.38,205.3,351.69098597]
[1731488770591,22.64288597,205.38,205.32,22.64288597]
[1731488770779,0.12549,205.43,205.3,329.0481]
[1731488770780,0.12549,205.43,205.37,17.0423]
[1731488771093,6.0108,205.53,205.42,42.64288597]
[1731488771263,22.64288597,205.54,205.47,22.64288597]
[1731488771592,21.4572,205.57,205.49,22.64288597]
[1731488771768,22.64288597,205.56,205.49,22.64288597]
[1731488771971,22.64288597,205.52,205.43,22.64288597]
[1731488772168,22.64288597,205.5,205.41,22.64288597]
[1731488772377,22.64288597,205.48,205.39,42.64288597]
[1731488772672,22.64288597,205.46,205.39,22.64288597]
[1731488772979,22.64288597,205.46,205.39,27.51158597]
[1731488773178,22.64288597,205.46,205.39,39.68348597]
[1731488773379,22.64288597,205.48,205.39,39.68348597]
[1731488773681,22.64288597,205.48,205.41,22.64288597]
[1731488774386,22.64288597,205.48,205.39,17.0406]
[1731488774387,22.64288597,205.46,205.39,12.1719]
[1731488774577,22.64288597,205.44,205.35,27.51238597]
[1731488774781,22.64288597,205.44,205.37,22.64288597]
[1731488774961,22.64288597,205.46,205.39,22.64288597]
[1731488775166,22.64288597,205.48,205.39,22.64288597]
[1731488775390,22.64288597,205.48,205.41,22.64288597]
[1731488776223,22.64288597,205.52,205.45,22.64288597]
[1731488776375,4.8655,205.53,205.47,22.64288597]
[1731488776585,22.64288597,205.52,205.44,12.1686]
[1731488776767,4.8655,205.53,205.46,22.64288597]
[1731488777082,22.64288597,205.52,205.44,34.81148597]
[1731488777586,0.12549,205.54,205.5,22.64288597]
[1731488777893,0.12549,205.54,205.48,42.64288597]
[1731488778077,0.12549,205.54,205.44,17.036]
[1731488778078,27.63367597,205.54,205.46,22.64288597]
[1731488778685,0.12549,205.51,205.44,34.81148597]
[1731488778875,22.64288597,205.5,205.42,22.64288597]
[1731488779068,22.64288597,205.5,205.42,27.51078597]
[1731488779485,22.64288597,205.5,205.42,39.68088597]
[1731488779667,22.64288597,205.5,205.42,22.64288597]
[1731488779868,22.64288597,205.48,205.38,22.64288597]
[1731488780080,22.64288597,205.42,205.34,22.64288597]
[1731488780387,22.64288597,205.4,205.31,17.0466]
[1731488780595,22.64288597,205.4,205.32,22.64288597]
[1731488780796,27.51148597,205.4,205.32,22.64288597]
[1731488781103,27.51148597,205.4,205.31,17.0466]
[1731488781601,22.64288597,205.38,205.31,17.0466]
[1731488781992,27.51208597,205.38,205.3,22.64288597]
[1731488782187,22.64288597,205.36,205.28,22.64288597]
[1731488782584,22.64288597,205.36,205.28,27.51408597]
[1731488784404,27.51238597,205.36,205.28,27.51408597]
[1731488784790,22.64288597,205.34,205.26,39.69378597]
[1731488785199,22.64288597,205.3,205.22,334.64288597]
[1731488785402,22.64288597,205.28,205.21,12.1822]
[1731488785601,27.51428597,205.28,205.21,12.1822]
[1731488785904,27.51428597,205.28,205.21,17.0552]
[1731488786116,27.51428597,205.28,205.21,12.1822]
[1731488786399,22.64288597,205.26,205.2,0.4924824]
[1731488787592,27.51478597,205.26,205.2,0.4924824]
[1731488787806,24.3484,205.36,205.23,22.64288597]
[1731488787807,22.64288597,205.31,205.23,22.64288597]
[1731488788011,23.976884,205.34,205.21,22.64288597]
[1731488788305,23.976884,205.34,205.2,0.4924824]
[1731488788306,0.12549,205.28,205.22,22.64288597]
[1731488788704,7.54811057,205.31,205.2,0.4924824]
[1731488788705,22.64288597,205.31,205.23,22.64288597]
[1731488789002,23.776884,205.34,205.21,22.64288597]
[1731488789003,22.64288597,205.29,205.21,22.64288597]
[1731488789505,22.64288597,205.31,205.23,22.64288597]
[1731488789810,22.64288597,205.35,205.27,22.64288597]
[1731488790110,0.12549,205.32,205.25,22.64288597]
[1731488790408,22.64288597,205.35,205.27,22.64288597]
[1731488790711,22.64288597,205.35,205.22,4.8726]
[1731488790712,4.8698,205.35,205.29,22.64288597]
[1731488791711,15.1556,205.37,205.31,27.51338597]
[1731488792008,22.64288597,205.41,205.33,22.64288597]
[1731488792187,22.64288597,205.39,205.31,12.1767]
[1731488792390,22.64288597,205.37,205.29,22.64288597]
[1731488793213,0.12549,205.36,205.29,22.64288597]
[1731488794007,4.8697,205.35,205.29,22.64288597]
[1731488794212,0.12549,205.32,205.25,22.64288597]
[1731488794392,22.64288597,205.31,205.23,22.64288597]
[1731488795105,0.12549,205.32,205.25,22.64288597]
[1731488795318,4.8697,205.35,205.27,22.64288597]
[1731488795319,27.51258597,205.35,205.27,22.64288597]
[1731488795487,22.64288597,205.39,205.31,22.64288597]
[1731488796100,4.8686,205.4,205.33,22.64288597]
[1731488796512,6.3951,205.44,205.31,4.8706]
[1731488796513,38.56698597,205.43,205.35,22.64288597]
[1731488796690,38.56698597,205.43,205.32,43.776884]
[1731488796691,15.9241,205.43,205.37,22.64288597]
[1731488796892,15.9241,205.43,205.32,23.776884]
[1731488796893,15.9241,205.43,205.39,22.64288597]
[1731488797094,22.64288597,205.47,205.39,22.64288597]
[1731488797299,33.60688597,205.49,205.41,22.64288597]
[1731488797793,22.64288597,205.45,205.38,20.0]
[1731488798308,27.51028597,205.45,205.38,20.0]
[1731488799221,4.8642,205.59,205.45,20.0]
[1731488799406,39.03358597,205.61,205.52,22.64288597]
[1731488799606,16.3907,205.61,205.53,20.0]
[1731488799793,22.64288597,205.63,205.53,20.0]
[1731488799994,6.4313,205.64,205.53,20.0]
[1731488800202,27.50508597,205.67,205.53,48.642284]
[1731488800600,22.64288597,205.65,205.53,24.8654]
[1731488800809,27.50568597,205.65,205.53,24.8654]
[1731488801007,27.50628597,205.62,205.53,24.8654]
[1731488801818,22.64288597,205.62,205.53,24.8654]
[1731488802016,22.64288597,205.6,205.53,20.0]
[1731488802211,22.64288597,205.62,205.53,20.0]
[1731488802518,27.50628597,205.62,205.53,20.0]
[1731488802716,22.64288597,205.6,205.53,20.0]
[1731488802930,27.50718597,205.58,205.5,27.50888597]
[1731488803214,22.64288597,205.58,205.5,27.50888597]
[1731488803603,22.64288597,205.58,205.5,22.64288597]
[1731488803806,22.64288597,205.58,205.5,27.50878597]
[1731488804008,22.64288597,205.56,205.48,27.50938597]
[1731488804207,27.50718597,205.58,205.5,22.64288597]
[1731488804713,4.8643,205.58,205.52,22.64288597]
[1731488804915,4.8639,205.6,205.52,22.64288597]
[1731488806813,27.50678597,205.6,205.52,22.64288597]
[1731488807198,22.64288597,205.6,205.52,22.64288597]
[1731488807398,27.50678597,205.6,205.52,22.64288597]
[1731488809401,22.64288597,205.66,205.53,20.0]
[1731488809600,16.3907,205.69,205.53,66.54525997]
[1731488809825,16.3907,205.69,205.62,22.64288597]
[1731488810710,16.3907,205.69,205.6,22.64288597]
[1731488810910,21.2524,205.69,205.6,27.50668597]
[1731488811719,22.64288597,205.66,205.58,12.1605]
[1731488811901,22.64288597,205.61,205.53,12.1635]
[1731488812101,22.64288597,205.59,205.53,12.1635]
[1731488812715,22.64288597,205.59,205.5,27.50888597]
[1731488813028,22.64288597,205.57,205.5,27.50888597]
[1731488813622,27.50698597,205.59,205.5,39.67428597]
[1731488814808,22.64288597,205.57,205.5,12.1654]
[1731488815331,22.64288597,205.55,205.48,22.64288597]
[1731488815508,22.64288597,205.53,205.46,22.64288597]
[1731488816323,22.64288597,205.51,205.45,12.168]
[1731488816736,22.64288597,205.58,205.5,34.80828597]
[1731488816907,38.43068597,205.61,205.55,22.64288597]
[1731488817112,22.64288597,205.63,205.55,22.64288597]
[1731488817430,27.50598597,205.63,205.55,22.64288597]
[1731488818527,27.50598597,205.63,205.55,27.50778597]
[1731488819101,27.50598597,205.63,205.55,39.67018597]
[1731488819325,27.50568597,205.65,205.57,22.64288597]
[1731488819525,38.43068597,205.67,205.59,22.64288597]
[1731488819732,43.29288597,205.67,205.59,22.64288597]
[1731488820717,43.29288597,205.67,205.59,27.50678597]
[1731488822214,22.64288597,205.62,205.55,34.80528597]
[1731488822815,22.64288597,205.62,205.55,12.1624]
[1731488823126,22.64288597,205.6,205.53,27.50808597]
[1731488823429,22.64288597,205.6,205.51,27.50858597]
[1731488824125,22.64288597,205.58,205.51,22.64288597]
[1731488824329,4.864,205.59,205.45,34.81078597]
[1731488824330,22.64288597,205.54,205.45,34.81078597]
[1731488824639,22.64288597,205.56,205.47,22.64288597]
[1731488824842,22.64288597,205.62,205.53,22.64288597]
[1731488825010,22.64288597,205.66,205.57,22.64288597]
[1731488825212,22.64288597,205.64,205.55,22.64288597]
[1731488825728,4.8625,205.66,205.53,312.0]
[1731488825729,22.64288597,205.6,205.53,334.64288597]
[1731488825905,22.64288597,205.6,205.53,312.0]
[1731488826108,22.64288597,205.6,205.53,27.50818597]
[1731488826410,22.64288597,205.64,205.55,22.64288597]
[1731488827235,4.8627,205.65,205.57,22.64288597]
[1731488828123,4.8627,205.65,205.6,0.589289]
[1731488829616,22.64288597,205.66,205.6,0.589289]
[1731488830731,38.26348597,205.73,205.63,22.64288597]
[1731488830935,15.6206,205.73,205.65,22.64288597]
[1731488831113,22.64288597,205.75,205.67,22.64288597]
[1731488831522,27.50318597,205.75,205.67,27.50498597]
[1731488832434,22.64288597,205.75,205.67,39.66028597]
[1731488832632,27.50328597,205.75,205.67,39.66028597]
[1731488833317,27.50328597,205.75,205.65,22.64288597]
[1731488833519,22.64288597,205.73,205.66,20.0]
[1731488833812,22.64288597,205.75,205.66,24.8623]
[1731488834018,22.64288597,205.77,205.69,22.64288597]
[1731488834217,22.64288597,205.79,205.71,22.64288597]
[1731488835439,22.64288597,205.79,205.71,27.50398597]
[1731488836429,15.9685,205.89,205.78,22.64288597]
[1731488836748,15.9685,205.89,205.76,0.1]
[1731488837035,15.9685,205.89,205.81,22.64288597]
[1731488837340,22.64288597,205.84,205.78,20.0]
[1731488837522,22.64288597,205.84,205.75,22.64288597]
[1731488837721,22.64288597,205.86,205.77,22.64288597]
[1731488837936,22.64288597,205.86,205.78,20.0]
[1731488838122,22.64288597,205.84,205.77,312.0]
[1731488838322,22.64288597,205.84,205.76,24.86]
[1731488838734,22.64288597,205.86,205.79,22.64288597]
[1731488839117,22.64288597,205.86,205.77,22.64288597]
[1731488839319,22.64288597,205.86,205.78,20.0]
[1731488839939,22.64288597,205.88,205.79,22.64288597]
[1731488840145,22.64288597,205.88,205.8,20.0]
[1731488840324,22.64288597,205.88,205.81,17.0059]
[1731488840526,22.64288597,205.9,205.83,22.64288597]
[1731488840865,22.64288597,205.9,205.84,20.0]
[1731488841341,22.64288597,205.9,205.82,20.0]
[1731488841723,22.57860782,205.9,205.83,4.8583]
[1731488842427,22.64288597,205.92,205.85,22.64288597]
[1731488842723,0.4924824,205.93,205.86,20.0]
[1731488842934,22.64288597,205.92,205.86,20.0]
[1731488843841,0.4924824,205.93,205.87,39.64378597]
[1731488844048,0.4924824,205.93,205.87,17.0009]
[1731488846025,0.4924824,205.93,205.88,20.0]
[1731488846445,0.4924824,205.93,205.89,22.64288597]
[1731488846646,0.4924824,205.93,205.9,20.0]
[1731488847345,0.4924824,205.93,205.88,20.0]
[1731488847930,0.4924824,205.93,205.89,4.8569]
[1731488848137,0.4924824,205.93,205.88,20.0]
[1731488848329,0.4924824,205.93,205.88,24.8571]
[1731488848726,0.4924824,205.93,205.88,37.0]
[1731488849153,0.4924824,205.93,205.86,22.64288597]
[1731488849349,0.4924824,205.93,205.92,20.0]
[1731488849531,0.4924824,205.93,205.88,22.64288597]
[1731488850065,0.4924824,205.93,205.89,20.0]
[1731488850227,0.4924824,205.93,205.88,4.857]
[1731488850754,0.4924824,205.93,205.88,39.64278597]
[1731488852233,27.99146837,205.93,205.86,27.50028597]
[1731488852944,23.13536837,205.93,205.87,20.0]
[1731488853134,0.4924824,205.93,205.87,20.0]
[1731488854346,0.4924824,205.93,205.87,37.0007]
[1731488855237,23.13536837,205.93,205.87,37.0007]
[1731488856031,27.99136837,205.93,205.87,12.1435]
[1731488856257,27.99136837,205.93,205.84,27.50078597]
[1731488856458,22.64288597,205.91,205.85,20.0]
[1731488856637,23.13536837,205.93,205.86,22.64288597]
[1731488858558,22.64288597,205.91,205.84,39.64608597]
[1731488859753,27.49938597,205.91,205.84,39.64608597]
[1731488859960,22.64288597,205.89,205.82,22.64288597]
[1731488860259,22.64288597,205.89,205.82,4.8585]
[1731488860450,22.64288597,205.89,205.8,39.64908597]
[1731488860649,22.64288597,205.89,205.82,22.64288597]
[1731488861046,22.64288597,205.89,205.8,39.64908597]
[1731488861241,15.3303,205.9,205.8,12.1474]
[1731488861242,22.64288597,205.87,205.8,12.1474]
[1731488861734,4.8576,205.86,205.8,12.1474]
[1731488861938,22.64288597,205.85,205.78,22.64288597]
[1731488862152,22.64288597,205.85,205.77,4.8596]
[1731488862757,22.64288597,205.85,205.76,39.65278597]
[1731488862957,22.64288597,205.83,205.76,34.79278597]
[1731488863151,22.64288597,205.83,205.76,12.1499]
[1731488863655,22.64288597,205.79,205.72,12.1522]
[1731488863868,22.64288597,205.77,205.71,22.64288597]
[1731488864162,22.64288597,205.77,205.66,2.22181793]
[1731488864163,22.64288597,205.77,205.69,4.8614]
[1731488864350,22.64288597,205.75,205.69,4.8614]
[1731488865159,22.64288597,205.75,205.67,34.79768597]
[1731488865360,23.876884,205.77,205.63,27.50578597]
[1731488865574,22.64288597,205.73,205.65,22.64288597]
[1731488865768,22.64288597,205.71,205.63,22.64288597]
[1731488866066,22.64288597,205.71,205.63,34.80058597]
[1731488866658,27.50308597,205.75,205.67,22.64288597]
[1731488866962,22.05474097,205.77,205.69,22.64288597]
[1731488867161,15.8383,205.79,205.73,22.64288597]
[1731488867652,15.8383,205.79,205.64,30.52682137]
[1731488867653,20.6976,205.79,205.71,22.64288597]
[1731488867857,22.64288597,205.78,205.69,22.64288597]
[1731488868166,22.64288597,205.76,205.69,22.64288597]
[1731488868341,22.64288597,205.76,205.67,22.64288597]
[1731488869266,22.64288597,205.76,205.69,22.64288597]
[1731488869566,22.64288597,205.78,205.69,22.64288597]
[1731488870260,20.6976,205.79,205.68,17.0167]
[1731488870261,22.64288597,205.75,205.68,17.0167]
[1731488870859,4.8602,205.76,205.69,22.64288597]
[1731488871748,4.8602,205.76,205.69,27.50438597]
[1731488874069,4.8602,205.76,205.69,22.64288597]
[1731488874259,22.64288597,205.75,205.68,12.1548]
[1731488874575,4.8602,205.76,205.65,4.8624]
[1731488874576,22.64288597,205.71,205.65,4.8624]
[1731488874766,22.64288597,205.71,205.53,4.8654]
[1731488874767,22.64288597,205.66,205.53,4.8654]
[1731488875067,22.64288597,205.62,205.53,27.50828597]
[1731488875653,22.64288597,205.6,205.53,39.67188597]
[1731488875851,0.22549,205.68,205.51,4.8657]
[1731488875852,22.64288597,205.58,205.51,4.8657]
[1731488876143,22.64288597,205.58,205.51,17.0305]
[1731488876361,22.64288597,205.6,205.52,22.64288597]
[1731488877258,22.64288597,205.6,205.52,334.64288597]
[1731488877457,22.64288597,205.6,205.53,17.029]
[1731488878065,39.22078597,205.62,205.53,17.029]
[1731488878367,39.22078597,205.62,205.55,20.0]
[1731488878564,22.64288597,205.66,205.58,22.64288597]
[1731488878952,22.64288597,205.64,205.56,22.64288597]
[1731488879166,22.64288597,205.6,205.53,17.029]
[1731488879466,22.64288597,205.58,205.53,17.029]
[1731488879664,22.64288597,205.58,205.53,12.1636]
[1731488881479,27.50718597,205.58,205.49,4.8662]
[1731488881653,27.50758597,205.56,205.49,4.8662]
[1731488881967,22.64288597,205.56,205.49,17.0322]
[1731488883270,22.64288597,205.56,205.45,6.2935]
[1731488883271,22.64288597,205.58,205.51,17.0307]
[1731488883959,22.64288597,205.58,205.52,20.0]
[1731488884975,22.64288597,205.64,205.56,22.64288597]
[1731488885269,27.50538597,205.66,205.56,22.64288597]
[1731488885471,22.64288597,205.62,205.57,12.1611]
[1731488885872,22.64288597,205.62,205.54,27.50808597]
[1731488886382,22.64288597,205.62,205.54,39.67108597]
[1731488886882,22.64288597,205.66,205.57,20.0]
[1731488887080,16.1106,205.67,205.59,20.0]
[1731488887373,22.64288597,205.66,205.6,4.8638]
[1731488887555,22.64288597,205.64,205.59,12.16]